fUST/lending_fUST_20251206
["ID","MTS","AMOUNT","RATE_DAILY","PERIOD"]
[396481938,1764984641564,-801.55,0.00013645,2]
[396481939,1764984641573,-620.92,0.00013645,2]
[396481940,1764984641582,-500.0,0.00013645,2]
[396481941,1764984641591,-500.0,0.00013645,2]
[396481942,1764984641600,-500.0,0.00013645,2]
[396481943,1764984641609,-764.94,0.00013645,2]
[396481944,1764984641619,-500.0,0.00013645,2]
[396481945,1764984641628,-3498.92,0.00013645,2]
[396481946,1764984641639,-655.07,0.00013645,2]
[396481947,1764984641650,-588.87,0.00013645,2]
[396481948,1764984641659,-500.0,0.00013645,2]
[396481949,1764984641668,-681.95,0.00013645,2]
[396481950,1764984641678,-520.94,0.00013645,2]
[396481951,1764984641686,-2149.63,0.00013645,2]
[396481952,1764984641695,-1365.09,0.00013645,2]
[396481953,1764984641704,-500.0,0.00013645,2]
[396481954,1764984641716,-500.0,0.00013645,2]
[396481955,1764984641725,-1566.82,0.00013645,2]
[396481956,1764984641735,-500.0,0.00013645,2]
[396481957,1764984641744,-500.0,0.00013645,2]
[396481958,1764984641753,-892.27,0.00013645,2]
[396481959,1764984641762,-500.0,0.00013645,2]
[396481960,1764984641771,-667.29,0.00013645,2]
[396481961,1764984641779,-795.69,0.00013645,2]
[396481962,1764984641790,-1027.78,0.00013645,2]
[396481963,1764984641802,-824.92,0.00013645,2]
[396481964,1764984641811,-552.81,0.00013645,2]
[396481965,1764984641821,-500.0,0.00013645,2]
[396481966,1764984641830,-1145.85,0.00013645,2]
[396481967,1764984641841,-528.84,0.00013669,2]
[396481968,1764984641853,-500.0,0.00013669,2]
[396481969,1764984641863,-500.0,0.00013669,2]
[396481970,1764984641874,-500.0,0.00013669,2]
[396481971,1764984641883,-500.0,0.00013669,2]
[396481972,1764984641893,-574.26293734,0.00013669,2]
[396481973,1764984641904,-500.0,0.00013669,2]
[396481974,1764984641913,-500.0,0.00013669,2]
[396481975,1764984641922,-500.0,0.00013669,2]
[396481976,1764984641931,-500.0,0.00013669,2]
[396481977,1764984641940,-500.0,0.00013669,2]
[396481978,1764984641949,-500.0,0.00013669,2]
[396481979,1764984641957,-500.0,0.00013669,2]
[396481980,1764984641966,-500.0,0.00013669,2]
[396481981,1764984641975,-500.0,0.00013669,2]
[396481982,1764984641984,-585.13562321,0.00013669,2]
[396481983,1764984641996,-500.0,0.00013669,2]
[396481984,1764984642006,-500.0,0.00013669,2]
[396481985,1764984642014,-500.0,0.00013669,2]
[396481986,1764984642024,-500.0,0.00013669,2]
[396481987,1764984642037,-546.28,0.00013669,2]
[396481988,1764984642047,-500.0,0.00013669,2]
[396481989,1764984642056,-500.0,0.00013669,2]
[396481990,1764984642067,-500.0,0.00013669,2]
[396481991,1764984642075,-500.0,0.00013669,2]
[396481992,1764984642084,-500.0,0.00013669,2]
[396481993,1764984642093,-500.0,0.00013669,2]
[396481994,1764984642104,-371.01747676,0.00013669,2]
[396481995,1764984642113,-218.60521502,0.00013669,2]
[396481996,1764984642122,-500.0,0.00013669,2]
[396481997,1764984642131,-272.80635246,0.00013669,2]
[396481998,1764984642140,-500.0,0.00013669,2]
[396481999,1764984642149,-500.0,0.00013669,2]
[396482000,1764984642158,-500.0,0.00013669,2]
[396482001,1764984642167,-500.0,0.00013669,2]
[396482002,1764984642176,-517.41,0.00013669,2]
[396482003,1764984642185,-500.0,0.00013669,2]
[396482004,1764984642194,-598.96,0.00013669,2]
[396482005,1764984642203,-500.0,0.00013669,2]
[396482006,1764984642212,-500.0,0.00013669,2]
[396482007,1764984642221,-500.0,0.00013669,2]
[396482008,1764984642230,-500.0,0.00013669,2]
[396482009,1764984642240,-500.0,0.00013669,2]
[396482010,1764984642249,-500.0,0.00013669,2]
[396482011,1764984642258,-417.3951829,0.00013669,2]
[396482012,1764984642267,-500.0,0.00013669,2]
[396482013,1764984642276,-500.0,0.00013669,2]
[396482014,1764984642285,-500.0,0.00013669,2]
[396482015,1764984642295,-500.0,0.00013669,2]
[396482016,1764984642304,-500.0,0.00013669,2]
[396482017,1764984642314,-500.0,0.00013669,2]
[396482018,1764984642323,-424.78425192,0.00013669,2]
[396482019,1764984642332,-500.0,0.00013669,2]
[396482020,1764984642341,-500.0,0.00013669,2]
[396482021,1764984642351,-500.0,0.00013669,2]
[396482022,1764984642360,-500.0,0.00013669,2]
[396482023,1764984642369,-500.0,0.00013669,2]
[396482024,1764984642379,-500.0,0.00013669,2]
[396482025,1764984642389,-500.0,0.00013669,2]
[396482026,1764984642400,-500.0,0.00013669,2]
[396482027,1764984642409,-500.0,0.00013669,2]
[396482028,1764984642418,-500.0,0.00013669,2]
[396482029,1764984642427,-500.0,0.00013669,2]
[396482030,1764984642436,-550.79,0.00013669,2]
[396482031,1764984642446,-500.0,0.00013669,2]
[396482032,1764984642455,-500.0,0.00013669,2]
[396482033,1764984642465,-383.2264683,0.00013669,2]
[396482034,1764984642474,-500.0,0.00013669,2]
[396482035,1764984642484,-645.23,0.00013669,2]
[396482036,1764984642494,-500.0,0.00013669,2]
[396482037,1764984642503,-500.0,0.00013669,2]
[396482038,1764984642513,-500.0,0.00013669,2]
[396482039,1764984642522,-500.0,0.00013669,2]
[396482040,1764984642531,-2207.61,0.00013669,2]
[396482041,1764984642540,-500.0,0.00013669,2]
[396482042,1764984642549,-500.0,0.00013669,2]
[396482043,1764984642558,-2826.44,0.00013669,2]
[396482044,1764984642568,-500.0,0.00013669,2]
[396482045,1764984642577,-500.0,0.00013669,2]
[396482046,1764984642586,-500.0,0.00013669,2]
[396482047,1764984642595,-500.0,0.00013669,2]
[396482048,1764984642604,-621.01,0.00013669,2]
[396482049,1764984642614,-500.0,0.00013669,2]
[396482050,1764984642623,-5177.47,0.00013669,2]
[396482051,1764984642632,-500.0,0.00013669,2]
[396482052,1764984642641,-500.0,0.00013669,2]
[396482053,1764984642651,-500.0,0.00013669,2]
[396482054,1764984642659,-500.0,0.00013669,2]
[396482055,1764984642670,-859.96,0.00013669,2]
[396482056,1764984642679,-500.0,0.00013669,2]
[396482057,1764984642688,-500.0,0.00013669,2]
[396482058,1764984642698,-500.0,0.00013669,2]
[396482059,1764984642706,-599.16,0.00013669,2]
[396482060,1764984642715,-500.0,0.00013669,2]
[396482061,1764984642724,-439.1088802,0.00013669,2]
[396482062,1764984642733,-549.61,0.00013669,2]
[396482063,1764984642742,-1571.23,0.00013669,2]
[396482064,1764984642751,-500.0,0.00013669,2]
[396482065,1764984642761,-398.7402803,0.00013669,2]
[396482066,1764984642771,-3500.13,0.00013669,2]
[396482067,1764984642780,-1464.41,0.00013669,2]
[396482068,1764984642790,-319.50264127,0.00013669,2]
[396482069,1764984642799,-698.02,0.00013669,2]
[396482070,1764984642808,-500.0,0.00013669,2]
[396482071,1764984642817,-500.0,0.00013669,2]
[396482072,1764984642826,-500.0,0.00013669,2]
[396482073,1764984642835,-500.0,0.00013669,2]
[396482074,1764984642844,-500.0,0.00013669,2]
[396482075,1764984642853,-883.03,0.00013669,2]
[396482076,1764984642862,-500.0,0.00013669,2]
[396482077,1764984642871,-11115.79,0.00013669,2]
[396482078,1764984642880,-269.23991043,0.00013669,2]
[396482079,1764984642889,-729.47,0.00013669,2]
[396482080,1764984642898,-180.33690898,0.00013669,2]
[396482081,1764984642907,-500.0,0.00013669,2]
[396482082,1764984642916,-500.0,0.00013669,2]
[396482083,1764984642925,-496.28250006,0.00013669,2]
[396482084,1764984642934,-502.24,0.00013669,2]
[396482085,1764984642943,-500.0,0.00013669,2]
[396482086,1764984642952,-168.23071813,0.00013669,2]
[396482087,1764984642961,-500.0,0.00013669,2]
[396482088,1764984642971,-694.27,0.00013669,2]
[396482089,1764984642979,-2105.28,0.00013669,2]
[396482090,1764984642988,-500.0,0.00013669,2]
[396482092,1764984642997,-1762.9,0.00013669,2]
[396482094,1764984643006,-500.0,0.00013669,2]
[396482096,1764984643016,-937.65,0.00013669,2]
[396482098,1764984643025,-557.66,0.00013669,2]
[396482100,1764984643033,-630.86850267,0.00013669,2]
[396482102,1764984643042,-1125.54,0.00013669,2]
[396482103,1764984643051,-500.0,0.00013669,2]
[396482104,1764984643060,-500.0,0.00013669,2]
[396482105,1764984643070,-500.0,0.00013669,2]
[396482107,1764984643079,-500.0,0.00013669,2]
[396482109,1764984643089,-500.0,0.00013669,2]
[396482110,1764984643098,-500.0,0.00013669,2]
[396482111,1764984643108,-1449.04,0.00013669,2]
[396482112,1764984643117,-500.0,0.00013669,2]
[396482113,1764984643126,-807.63,0.00013671,2]
[396482114,1764984643135,-632.35,0.00013671,2]
[396482115,1764984643145,-500.0,0.00013671,2]
[396482116,1764984643154,-503.96,0.00013671,2]
[396482117,1764984643163,-500.0,0.00013671,2]
[396482118,1764984643172,-500.0,0.00013671,2]
[396482119,1764984643181,-500.0,0.00013697,2]
[396482120,1764984643190,-500.0,0.00013697,2]
[396482121,1764984643198,-500.0,0.00013697,2]
[396482122,1764984643208,-500.0,0.00013697,2]
[396482123,1764984643217,-980.88,0.00013697,2]
[396482126,1764984643404,-500.0,0.00013697,2]
[396482127,1764984643415,-522.37918755,0.00013697,2]
[396482128,1764984643425,-500.0,0.00013697,2]
[396482129,1764984643435,-500.0,0.00013697,2]
[396482130,1764984643446,-500.0,0.00013697,2]
[396482131,1764984643455,-500.0,0.00013697,2]
[396482132,1764984643464,-539.47682937,0.00013697,2]
[396482133,1764984643474,-500.0,0.00013697,2]
[396482134,1764984643484,-500.0,0.00013697,2]
[396482135,1764984643494,-500.0,0.00013697,2]
[396482136,1764984643503,-500.0,0.00013697,2]
[396482137,1764984643513,-500.0,0.00013697,2]
[396482138,1764984643522,-500.0,0.00013697,2]
[396482139,1764984643532,-561.45,0.00013697,2]
[396482140,1764984643541,-500.0,0.00013697,2]
[396482141,1764984643550,-5373.57,0.00013697,2]
[396482142,1764984643559,-785.9,0.00013697,2]
[396482143,1764984643569,-856.82,0.00013697,2]
[396482144,1764984643578,-502.2,0.00013697,2]
[396482145,1764984643587,-500.0,0.00013697,2]
[396482146,1764984643596,-4577.73,0.00013697,2]
[396482147,1764984643605,-2814.42,0.00013697,2]
[396482148,1764984643615,-5044.77,0.00013697,2]
[396482149,1764984643624,-500.0,0.00013697,2]
[396482150,1764984643633,-520.69,0.00013697,2]
[396482151,1764984643643,-500.0,0.00013697,2]
[396482152,1764984643652,-1037.07,0.00013697,2]
[396482153,1764984643661,-500.0,0.00013698,2]
[396482154,1764984643670,-500.0,0.00013698,2]
[396482155,1764984643679,-500.0,0.00013698,2]
[396482156,1764984643688,-500.0,0.00013698,2]
[396482157,1764984643697,-500.0,0.00013698,2]
[396482158,1764984643706,-500.0,0.00013698,2]
[396482159,1764984643715,-500.0,0.00013698,2]
[396482161,1764984643724,-500.0,0.00013698,2]
[396482162,1764984643734,-500.0,0.00013698,2]
[396482163,1764984643743,-737.02,0.00013698,2]
[396482164,1764984643754,-2006.27,0.00013698,2]
[396482165,1764984643763,-1388.45,0.00013698,2]
[396482166,1764984643772,-500.0,0.00013698,2]
[396482167,1764984643781,-1160.36,0.00013698,2]
[396482168,1764984643790,-500.0,0.00013698,2]
[396482169,1764984643799,-500.0,0.00013698,2]
[396482170,1764984643808,-936.33,0.00013698,2]
[396482171,1764984643817,-500.0,0.00013698,2]
[396482172,1764984643826,-500.0,0.00013698,2]
[396482173,1764984643835,-336.24856353,0.00013698,2]
[396482174,1764984643844,-500.0,0.00013698,2]
[396482175,1764984643853,-500.0,0.00013698,2]
[396482176,1764984643862,-500.0,0.00013698,2]
[396482177,1764984643871,-500.0,0.00013698,2]
[396482178,1764984643880,-500.0,0.00013698,2]
[396482179,1764984643890,-667.72,0.00013698,2]
[396482180,1764984643899,-663.74,0.00013698,2]
[396482181,1764984643908,-500.0,0.00013698,2]
[396482182,1764984643918,-308.56826945,0.00013698,2]
[396482183,1764984643928,-500.0,0.00013698,2]
[396482184,1764984643937,-500.0,0.00013698,2]
[396482185,1764984643946,-521.52,0.00013698,2]
[396482186,1764984643955,-500.0,0.00013698,2]
[396482187,1764984643964,-500.0,0.00013698,2]
[396482188,1764984643973,-500.0,0.00013698,2]
[396482189,1764984643982,-500.0,0.00013698,2]
[396482190,1764984643991,-500.0,0.00013698,2]
[396482191,1764984644000,-2200.43,0.00013698,2]
[396482192,1764984644010,-500.0,0.00013698,2]
[396482193,1764984644019,-6276.9,0.00013698,2]
[396482194,1764984644032,-500.0,0.00013698,2]
[396482195,1764984644041,-500.0,0.00013698,2]
[396482196,1764984644050,-500.0,0.00013698,2]
[396482197,1764984644059,-500.0,0.00013698,2]
[396482198,1764984644070,-500.0,0.00013698,2]
[396482199,1764984644080,-635.64,0.00013698,2]
[396482200,1764984644090,-500.0,0.00013698,2]
[396482201,1764984644100,-500.0,0.00013698,2]
[396482202,1764984644111,-500.0,0.00013698,2]
[396482203,1764984644120,-500.0,0.00013698,2]
[396482204,1764984644129,-250.0,0.00013698,2]
[396482205,1764984644139,-500.0,0.00013698,2]
[396482206,1764984644149,-500.0,0.00013698,2]
[396482207,1764984644158,-550.76,0.00013698,2]
[396482208,1764984644167,-500.0,0.00013698,2]
[396482209,1764984644177,-809.38,0.00013698,2]
[396482210,1764984644187,-946.82,0.00013698,2]
[396482211,1764984644198,-17304.7571778,0.00013699,2]
[396482212,1764984644208,-13054.0614075,0.00013699,2]
[396482213,1764984644218,-1000.0,0.00013699,2]
[396482214,1764984644227,-193.087241,0.00013699,2]
[396482215,1764984644236,-193.087241,0.00013699,2]
[396482216,1764984644246,-193.087241,0.00013699,2]
[396482217,1764984644256,-193.087241,0.00013699,2]
[396482218,1764984644265,-193.087241,0.00013699,2]
[396482219,1764984644275,-193.087241,0.00013699,2]
[396482220,1764984644284,-193.087241,0.00013699,2]
[396482221,1764984644294,-193.087241,0.00013699,2]
[396482222,1764984644303,-193.087241,0.00013699,2]
[396482223,1764984644312,-193.087241,0.00013699,2]
[396482224,1764984644322,-193.087241,0.00013699,2]
[396482225,1764984644331,-193.087241,0.00013699,2]
[396482226,1764984644341,-193.087241,0.00013699,2]
[396482227,1764984644351,-193.087241,0.00013699,2]
[396482228,1764984644360,-193.087241,0.00013699,2]
[396482229,1764984644369,-193.087241,0.00013699,2]
[396482230,1764984644379,-193.087241,0.00013699,2]
[396482231,1764984644389,-193.087241,0.00013699,2]
[396482232,1764984644398,-193.087241,0.00013699,2]
[396482233,1764984644407,-193.087244,0.00013699,2]
[396482234,1764984644417,-500.0,0.00013699,2]
[396482235,1764984644427,-500.0,0.00013699,2]
[396482236,1764984644436,-500.0,0.00013699,2]
[396482237,1764984644447,-1000.0,0.00013699,2]
[396482238,1764984644456,-1000.0,0.00013699,2]
[396482239,1764984644466,-784.6385,0.00013699,2]
[396482240,1764984644476,-500.0,0.00013821,2]
[396482241,1764984644485,-500.0,0.00013841,2]
[396482242,1764984644495,-500.0,0.00013841,2]
[396482243,1764984644504,-500.0,0.00013841,2]
[396482244,1764984644514,-500.0,0.00013841,2]
[396482245,1764984644523,-500.0,0.00013841,2]
[396482246,1764984644534,-620.0,0.00013841,2]
[396482247,1764984644544,-500.0,0.00013841,2]
[396482248,1764984644553,-898.04,0.00013841,2]
[396482249,1764984644563,-500.0,0.00013841,2]
[396482250,1764984644572,-500.0,0.00013841,2]
[396482251,1764984644581,-681.84,0.00013841,2]
[396482252,1764984644590,-500.0,0.00013841,2]
[396482253,1764984644599,-500.0,0.00013841,2]
[396482254,1764984644609,-500.0,0.00013841,2]
[396482255,1764984644618,-1516.05,0.00013841,2]
[396482256,1764984644627,-1404.0,0.00013841,2]
[396482257,1764984644636,-500.0,0.00013841,2]
[396482258,1764984644646,-500.0,0.00013841,2]
[396482259,1764984644656,-562.49,0.00013841,2]
[396482260,1764984644665,-1017.17,0.00013841,2]
[396482261,1764984644675,-920.33,0.00013841,2]
[396482262,1764984644684,-667.7,0.00013841,2]
[396482263,1764984644693,-500.0,0.00013841,2]
[396482264,1764984644703,-3402.67,0.00013841,2]
[396482265,1764984644712,-500.0,0.00013841,2]
[396482266,1764984644721,-1979.91,0.00013841,2]
[396482267,1764984644731,-500.0,0.00013841,2]
[396482268,1764984644739,-500.0,0.00013841,2]
[396482269,1764984644748,-500.0,0.00013841,2]
[396482270,1764984644757,-695.76,0.00013841,2]
[396482271,1764984644766,-500.0,0.00013841,2]
[396482272,1764984644775,-2098.47,0.00013841,2]
[396482273,1764984644784,-838.31,0.00013841,2]
[396482274,1764984644794,-500.0,0.00013841,2]
[396482275,1764984644805,-500.0,0.00013871,2]
[396482276,1764984644815,-500.0,0.00013889,2]
[396482277,1764984644824,-500.0,0.00013889,2]
[396482278,1764984644835,-1594.6,0.00013889,2]
[396482279,1764984644846,-500.0,0.00013889,2]
[396482280,1764984644858,-500.0,0.00013889,2]
[396482281,1764984644868,-500.0,0.00013889,2]
[396482282,1764984644878,-500.0,0.00013889,2]
[396482283,1764984644888,-500.0,0.00013889,2]
[396482284,1764984644901,-940.36,0.00013889,2]
[396482285,1764984644911,-381.46530906,0.00013889,2]
[396482286,1764984644922,-688.03,0.00013889,2]
[396482287,1764984644932,-500.0,0.00013889,2]
[396482288,1764984644942,-500.0,0.00013889,2]
[396482289,1764984644952,-500.0,0.00013889,2]
[396482290,1764984644962,-500.0,0.00013889,2]
[396482291,1764984644973,-500.0,0.00013889,2]
[396482292,1764984644983,-500.0,0.00013889,2]
[396482293,1764984644993,-500.0,0.00013889,2]
[396482294,1764984645003,-584.38,0.00013889,2]
[396482295,1764984645012,-983.17,0.00013889,2]
[396482296,1764984645024,-500.0,0.00013889,2]
[396482297,1764984645034,-500.0,0.00013889,2]
[396482298,1764984645044,-500.0,0.00013889,2]
[396482299,1764984645056,-500.0,0.00013889,2]
[396482300,1764984645066,-2127.45,0.00013889,2]
[396482301,1764984645075,-500.0,0.00013889,2]
[396482302,1764984645084,-548.51,0.00013889,2]
[396482303,1764984645094,-757.75,0.00013889,2]
[396482304,1764984645103,-500.0,0.00013889,2]
[396482305,1764984645113,-1986.82,0.00013889,2]
[396482306,1764984645123,-500.0,0.00013889,2]
[396482307,1764984645133,-552.40615467,0.00013889,2]
[396482308,1764984645143,-500.0,0.00013889,2]
[396482309,1764984645152,-500.0,0.00013889,2]
[396482310,1764984645161,-500.0,0.00013889,2]
[396482311,1764984645170,-500.0,0.00013889,2]
[396482312,1764984645179,-500.0,0.00013889,2]
[396482313,1764984645188,-500.0,0.00013889,2]
[396482314,1764984645198,-500.0,0.00013889,2]
[396482315,1764984645207,-520.6,0.00013889,2]
[396482316,1764984645216,-500.0,0.00013889,2]
[396482317,1764984645225,-500.0,0.00013889,2]
[396482318,1764984645235,-500.0,0.00013889,2]
[396482319,1764984645244,-598.55,0.00013889,2]
[396482320,1764984645253,-500.0,0.00013889,2]
[396482321,1764984645262,-940.7,0.00013889,2]
[396482322,1764984645271,-669.51,0.00013889,2]
[396482323,1764984645281,-597.0,0.00013889,2]
[396482324,1764984645290,-500.0,0.00013889,2]
[396482325,1764984645299,-500.0,0.00013889,2]
[396482326,1764984645308,-6381.07,0.00013889,2]
[396482327,1764984645318,-1812.13,0.00013889,2]
[396482328,1764984645327,-528.51,0.00013889,2]
[396482329,1764984645336,-625.47,0.00013889,2]
[396482330,1764984645345,-500.0,0.00013889,2]
[396482331,1764984645357,-581.22498387,0.00013919,2]
[396482332,1764984645366,-853.71,0.00013919,2]
[396482333,1764984645376,-801.55,0.00013919,2]
[396482334,1764984645385,-620.92,0.00013919,2]
[396482335,1764984645395,-500.0,0.00013919,2]
[396482336,1764984645405,-500.0,0.00013919,2]
[396482337,1764984645415,-500.0,0.00013919,2]
[396482338,1764984645427,-764.94,0.00013919,2]
[396482339,1764984645436,-500.0,0.00013919,2]
[396482340,1764984645446,-3498.92,0.00013919,2]
[396482341,1764984645457,-655.07,0.00013919,2]
[396482342,1764984645467,-588.87,0.00013919,2]
[396482343,1764984645477,-500.0,0.00013919,2]
[396482344,1764984645487,-681.95,0.00013919,2]
[396482345,1764984645499,-520.94,0.00013919,2]
[396482346,1764984645508,-2149.63,0.00013919,2]
[396482347,1764984645517,-1365.09,0.00013919,2]
[396482348,1764984645526,-500.0,0.00013919,2]
[396482349,1764984645535,-500.0,0.00013919,2]
[396482350,1764984645544,-1566.82,0.00013919,2]
[396482351,1764984645554,-500.0,0.00013919,2]
[396482352,1764984645564,-500.0,0.00013919,2]
[396482353,1764984645574,-892.27,0.00013919,2]
[396482354,1764984645583,-500.0,0.00013919,2]
[396482355,1764984645592,-667.29,0.00013919,2]
[396482356,1764984645601,-795.69,0.00013919,2]
[396482357,1764984645610,-1027.78,0.00013919,2]
[396482358,1764984645619,-824.92,0.00013919,2]
[396482359,1764984645627,-552.81,0.00013919,2]
[396482360,1764984645637,-500.0,0.00013919,2]
[396482361,1764984645646,-1145.85,0.00013919,2]
[396482362,1764984645655,-528.84,0.00013943,2]
[396482363,1764984645665,-500.0,0.00013943,2]
[396482364,1764984645674,-500.0,0.00013943,2]
[396482365,1764984645683,-500.0,0.00013943,2]
[396482366,1764984645692,-500.0,0.00013943,2]
[396482367,1764984645702,-500.0,0.00013943,2]
[396482368,1764984645711,-500.0,0.00013943,2]
[396482369,1764984645721,-500.0,0.00013943,2]
[396482370,1764984645730,-500.0,0.00013943,2]
[396482371,1764984645741,-404.94540516,0.00013943,2]
[396482372,1764984645757,-500.0,0.00013943,2]
[396482373,1764984645767,-500.0,0.00013943,2]
[396482374,1764984645776,-500.0,0.00013943,2]
[396482375,1764984645787,-500.0,0.00013943,2]
[396482376,1764984645798,-168.73324627,0.00013943,2]
[396482377,1764984645808,-500.0,0.00013943,2]
[396482378,1764984645818,-182.71437903,0.00013943,2]
[396482379,1764984645828,-546.28,0.00013943,2]
[396482380,1764984645839,-500.0,0.00013943,2]
[396482381,1764984645848,-500.0,0.00013943,2]
[396482382,1764984645859,-609.93462022,0.00013943,2]
[396482383,1764984645869,-500.0,0.00013943,2]
[396482384,1764984645878,-500.0,0.00013943,2]
[396482385,1764984645888,-500.0,0.00013943,2]
[396482386,1764984645899,-448.48912519,0.00013943,2]
[396482387,1764984645909,-500.0,0.00013943,2]
[396482388,1764984645920,-500.0,0.00013943,2]
[396482389,1764984645930,-500.0,0.00013943,2]
[396482390,1764984645939,-500.0,0.00013943,2]
[396482391,1764984645948,-517.41,0.00013943,2]
[396482392,1764984645958,-556.27932453,0.00013943,2]
[396482393,1764984645967,-598.96,0.00013943,2]
[396482394,1764984645977,-500.0,0.00013943,2]
[396482395,1764984645989,-500.0,0.00013943,2]
[396482396,1764984646001,-500.0,0.00013943,2]
[396482397,1764984646014,-500.0,0.00013943,2]
[396482398,1764984646026,-500.0,0.00013943,2]
[396482399,1764984646041,-500.0,0.00013943,2]
[396482400,1764984646052,-500.0,0.00013943,2]
[396482401,1764984646062,-500.0,0.00013943,2]
[396482402,1764984646073,-500.0,0.00013943,2]
[396482403,1764984646085,-383.63580463,0.00013943,2]
[396482404,1764984646096,-500.0,0.00013943,2]
[396482405,1764984646108,-500.0,0.00013943,2]
[396482406,1764984646120,-500.0,0.00013943,2]
[396482407,1764984646131,-648.51945018,0.00013943,2]
[396482408,1764984646142,-500.0,0.00013943,2]
[396482409,1764984646154,-307.66180786,0.00013943,2]
[396482410,1764984646170,-368.15198799,0.00013943,2]
[396482411,1764984646182,-500.0,0.00013943,2]
[396482412,1764984646194,-500.0,0.00013943,2]
[396482413,1764984646205,-500.0,0.00013943,2]
[396482414,1764984646218,-500.0,0.00013943,2]
[396482415,1764984646229,-464.0465351,0.00013943,2]
[396482416,1764984646240,-500.0,0.00013943,2]
[396482418,1764984646251,-550.79,0.00013943,2]
[396482420,1764984646263,-500.0,0.00013943,2]
[396482422,1764984646273,-420.17956237,0.00013943,2]
[396482423,1764984646284,-500.0,0.00013943,2]
[396482424,1764984646295,-645.23,0.00013943,2]
[396482426,1764984646306,-500.0,0.00013943,2]
[396482427,1764984646318,-286.23631037,0.00013943,2]
[396482428,1764984646329,-500.0,0.00013943,2]
[396482429,1764984646339,-500.0,0.00013943,2]
[396482430,1764984646351,-2207.61,0.00013943,2]
[396482431,1764984646363,-500.0,0.00013943,2]
[396482432,1764984646376,-500.0,0.00013943,2]
[396482433,1764984646386,-2826.44,0.00013943,2]
[396482434,1764984646397,-538.25958476,0.00013943,2]
[396482435,1764984646409,-500.0,0.00013943,2]
[396482436,1764984646420,-500.0,0.00013943,2]
[396482437,1764984646431,-500.0,0.00013943,2]
[396482438,1764984646443,-621.01,0.00013943,2]
[396482439,1764984646454,-500.0,0.00013943,2]
[396482440,1764984646465,-5177.47,0.00013943,2]
[396482441,1764984646476,-500.0,0.00013943,2]
[396482442,1764984646488,-500.0,0.00013943,2]
[396482443,1764984646499,-500.0,0.00013943,2]
[396482444,1764984646512,-500.0,0.00013943,2]
[396482445,1764984646524,-859.96,0.00013943,2]
[396482446,1764984646537,-500.0,0.00013943,2]
[396482447,1764984646548,-500.0,0.00013943,2]
[396482448,1764984646559,-500.0,0.00013943,2]
[396482449,1764984646569,-599.16,0.00013943,2]
[396482450,1764984646579,-500.0,0.00013943,2]
[396482451,1764984646588,-549.61,0.00013943,2]
[396482452,1764984646598,-1571.23,0.00013943,2]